{"text_format":"1","workbook":"xlsx","n_sheets":3,"sheets":["Balance","Backward_Equation","Harder_Backward_Equation"],"not_rendered":{"charts":0,"images":0,"macros":1,"external_links":0,"defined_names":0,"comments":0,"pivot_tables":0},"unopened":[],"bounds":{"document_bytes":16777216,"sheet_cells":100000,"rows_first":2000,"rows_last":500,"rows_between":2000,"halvings":0,"cell_chars":16384,"cell_head_chars":4096},"cells_cut":0,"cells_raw":0,"read":"whole","date_system":"1900"}

{"sheet":"Balance","index":0,"n_rows":22,"n_cols":53,"rows_kept":22,"cut":false,"hidden":false,"merged":[[14,10,15,11],[14,35,15,36],[3,22,4,23],[8,22,9,23],[10,14,11,15],[10,26,11,27]]}
[]
[null,null,null,null,null,null,null,null,null,null,null,null,null,null,null,null,null,{"$f":"AV7","v":4},"u","+",1,"=",{"$f":"BA7","v":5}]
[null,null,null,null,null,null,null,null,null,null,null,null,null,null,null,null,null,null,null,null,null,null,null,null,null,null,null,null,null,null,null,null,null,null,null,null,null,null,null,null,null,null,null,null,null,null,null,null,null,null,{"$f":"T13","v":"u"},{"$f":"U13","v":"="},{"$f":"V13","v":1}]
[null,null,null,null,null,null,null,null,null,null,null,null,null,null,null,null,null,null,null,null,null,null,null,null,null,null,null,null,null,null,null,null,null,null,null,null,null,null,null,null,null,null,null,null,null,null,null,null,null,null,"x",{"$f":"ROUND(RAND()*(5-2)+2,0)","v":4}]
[null,null,null,null,null,null,null,null,null,null,null,null,null,null,null,null,null,null,null,null,null,null,null,null,null,null,null,null,null,null,null,null,null,null,null,null,null,null,null,null,null,null,null,null,null,null,null,null,null,{"$f":"AZ4","v":4},{"$f":"AY3","v":"u"},"=",{"$f":"AZ4*BA3","v":4}]
[null,null,null,null,null,null,null,null,null,null,null,null,null,null,null,null,null,null,null,null,null,null,null,null,null,null,null,null,null,null,null,null,null,null,null,null,null,null,null,null,null,null,null,null,null,null,null,null,null,null,"+",{"$f":"ROUND(RAND()*((9-1)+1),0)","v":1}]
[null,null,null,null,null,null,null,null,null,null,null,null,null,null,null,null,null,null,null,{"$f":"AX5","v":4},{"$f":"AY5","v":"u"},"=",4,null,null,null,null,null,null,null,null,null,null,null,null,null,null,null,null,null,null,null,null,null,null,null,null,{"$f":"AX5","v":4},{"$f":"AY5","v":"u"},"+",{"$f":"AZ6","v":1},"=",{"$f":"BA5+AZ6","v":5}]
[null,null,null,null,null,null,null,null,null,null,null,null,null,null,null,null,null,null,null,null,null,null,null,null,null,null,null,null,null,null,null,null,null,null,null,null,null,null,null,null,null,null,null,null,null,null,null,null,null,null,"+",{"$f":"ROUND(RAND()*((9-1)+1),0)","v":8}]
[null,null,null,null,null,null,null,null,null,null,null,null,null,null,null,null,null,null,null,null,null,null,null,null,null,null,null,null,null,null,null,null,null,null,null,null,null,null,null,null,null,null,null,null,null,null,null,null,{"$f":"AY3","v":"u"},"+",{"$f":"AZ8","v":8},"=",{"$f":"BA3+AZ8","v":9}]
[null,null,null,null,null,null,null,null,null,null,null,null,null,null,null,null,null,null,null,null,null,null,null,null,null,null,null,null,null,null,null,null,null,null,null,null,null,null,null,null,null,null,null,null,null,null,null,null,null,null,"x",{"$f":"ROUND(RAND()*(6-2)+2,0)","v":4}]
[null,null,null,null,null,null,null,null,null,null,null,null,null,null,null,null,null,null,null,null,null,null,null,null,null,null,null,null,null,null,null,null,null,null,null,null,null,null,null,null,null,null,null,null,null,null,null,{"$f":"AZ10","v":4},{"$f":"AY3","v":"u"},"+",{"$f":"AZ10*AY9","v":32},"=",{"$f":"AZ10*BA9","v":36}]
[null,null,null,null,null,null,null,null,null,null,null,null,null,null,null,null,null,null,null,null,null,null,null,null,null,null,null,null,null,null,null,null,null,null,null,null,null,null,null,null,null,null,null,null,null,null,null,null,null,null,"-",{"$f":"ROUND(RAND()*((9-1)+1),0)","v":9}]
[null,null,null,null,null,null,null,{"$f":"AW9","v":"u"},"+",8,"=",{"$f":"BA9","v":9},null,null,null,null,null,null,null,{"$f":"CHAR(RAND()*(122-115)+115)","v":"u"},"=",{"$f":"ROUND(RAND()*((9-(-9)+(-9))),0)","v":1},null,null,null,null,null,null,null,null,{"$f":"AW13","v":"u"},{"$f":"AX13","v":"-"},9,"=",-8,null,null,null,null,null,null,null,null,null,null,null,null,null,{"$f":"AY3","v":"u"},"-",{"$f":"AZ12","v":9},"=",{"$f":"BA3-AZ12","v":-8}]
[null,null,null,null,null,null,null,null,null,null,null,null,null,null,null,null,null,null,null,null,null,null,null,null,null,null,null,null,null,null,null,null,null,null,null,null,null,null,null,null,null,null,null,null,null,null,null,null,null,null,"x",{"$f":"ROUND(RAND()*(6-2)+2,0)","v":3}]
[null,null,null,null,null,null,null,null,null,null,null,null,null,null,null,null,null,null,null,null,null,null,null,null,null,null,null,null,null,null,null,null,null,null,null,null,null,null,null,null,null,null,null,null,null,null,null,{"$f":"AZ14","v":3},{"$f":"AY3","v":"u"},"-",{"$f":"AZ14*AY13","v":27},"=",{"$f":"BA13*AZ14","v":-24}]
[]
[null,null,null,null,null,null,null,null,null,null,null,null,null,null,null,null,null,null,null,null,null,null,null,null,null,null,null,null,null,null,null,null,null,null,null,null,null,null,null,null,null,null,null,null,null,null,null,null,null,null,{"$f":"CONCATENATE(AY4,AZ4)","v":"x4"}]
[null,null,null,null,null,null,{"$f":"AV11","v":4},"u","+",32,"=",{"$f":"BA11","v":36},null,null,null,null,null,null,null,null,null,null,null,null,null,null,null,null,null,{"$f":"AV15","v":3},"u","-",27,"=",{"$f":"BA15","v":-24},null,null,null,null,null,null,null,null,null,null,null,null,null,null,null,{"$f":"CONCATENATE(AY6,AZ6)","v":"+1"}]
[null,null,null,null,null,null,null,null,null,null,null,null,null,null,null,null,null,null,null,null,null,null,null,null,null,null,null,null,null,null,null,null,null,null,null,null,null,null,null,null,null,null,null,null,null,null,null,null,null,null,{"$f":"CONCATENATE(AY8,AZ8)","v":"+8"}]
[null,null,null,null,null,null,null,null,null,null,null,null,null,null,null,null,null,null,null,null,null,null,null,null,null,null,null,null,null,null,null,null,null,null,null,null,null,null,null,null,null,null,null,null,null,null,null,null,null,null,{"$f":"CONCATENATE(AY10,AZ10)","v":"x4"}]
[null,null,null,null,null,null,null,null,null,null,null,null,null,null,null,null,null,null,null,null,null,null,null,null,null,null,null,null,null,null,null,null,null,null,null,null,null,null,null,null,null,null,null,null,null,null,null,null,null,null,{"$f":"CONCATENATE(AY12,AZ12)","v":"-9"}]
[null,null,null,null,null,null,null,null,null,null,null,null,null,null,null,null,null,null,null,null,null,null,null,null,null,null,null,null,null,null,null,null,null,null,null,null,null,null,null,null,null,null,null,null,null,null,null,null,null,null,{"$f":"CONCATENATE(AY14,AZ14)","v":"x3"}]

{"sheet":"Backward_Equation","index":1,"n_rows":23,"n_cols":57,"rows_kept":23,"cut":false,"hidden":false,"merged":[[15,14,16,15],[15,39,16,40],[4,26,5,27],[9,26,10,27],[11,18,12,19],[11,30,12,31]]}
[]
[]
[]
[null,null,null,null,null,null,null,null,null,null,null,null,null,null,null,null,null,null,null,null,null,null,null,null,null,null,null,null,null,null,null,null,null,null,null,null,null,null,null,null,null,null,null,null,null,null,null,null,null,null,null,null,null,null,{"$f":"X14","v":"j"},{"$f":"Y14","v":"="},{"$f":"Z14","v":9}]
[null,null,null,null,null,null,null,null,null,null,null,null,null,null,null,null,null,null,null,null,null,null,null,null,null,null,{"$f":"BC19","v":"+2"},null,null,null,null,null,null,null,null,null,null,null,null,null,null,null,null,null,null,null,null,null,null,null,null,null,null,null,"x",{"$f":"ROUND(RAND()*(9-2)+2,0)","v":6}]
[null,null,null,null,null,null,null,null,null,null,null,null,null,null,null,null,null,null,null,null,null,null,null,null,null,null,null,null,null,null,null,null,null,null,null,null,null,null,null,null,null,null,null,null,null,null,null,null,null,null,null,null,null,{"$f":"BD5","v":6},{"$f":"BC4","v":"j"},"=",{"$f":"BD5*BE4","v":54}]
[null,null,null,null,null,null,null,null,null,null,null,null,null,null,null,null,null,null,null,null,null,null,null,null,null,null,null,null,null,null,null,null,null,null,null,null,null,null,null,null,null,null,null,null,null,null,null,null,null,null,null,null,null,null,"+",{"$f":"ROUND(RAND()*(9-1)+1,0)","v":2}]
[null,null,null,null,null,null,null,null,null,null,null,null,null,null,null,null,null,null,null,null,null,null,null,null,null,null,null,null,null,null,null,null,null,null,null,null,null,null,null,null,null,null,null,null,null,null,null,null,null,null,null,{"$f":"BB6","v":6},{"$f":"BC6","v":"j"},"+",{"$f":"BD7","v":2},"=",{"$f":"BE6+BD7","v":56}]
[null,null,null,null,null,null,null,null,null,null,null,null,null,null,null,null,null,null,null,null,null,null,null,null,null,null,null,null,null,null,null,null,null,null,null,null,null,null,null,null,null,null,null,null,null,null,null,null,null,null,null,null,null,null,"+",{"$f":"ROUND(RAND()*(9-1)+1,0)","v":6}]
[null,null,null,null,null,null,null,null,null,null,null,null,null,null,null,null,null,null,null,null,null,null,null,null,null,null,{"$f":"BC18","v":"x6"},null,null,null,null,null,null,null,null,null,null,null,null,null,null,null,null,null,null,null,null,null,null,null,null,null,{"$f":"BC4","v":"j"},"+",{"$f":"BD9","v":6},"=",{"$f":"BE4+BD9","v":15}]
[null,null,null,null,null,null,null,null,null,null,null,null,null,null,null,null,null,null,null,null,null,null,null,null,null,null,null,null,null,null,null,null,null,null,null,null,null,null,null,null,null,null,null,null,null,null,null,null,null,null,null,null,null,null,"x",{"$f":"ROUND(RAND()*(9-2)+2,0)","v":4}]
[null,null,null,null,null,null,null,null,null,null,null,null,null,null,null,null,null,null,{"$f":"BC20","v":"+6"},null,null,null,null,null,null,null,null,null,null,null,{"$f":"BC22","v":"-2"},null,null,null,null,null,null,null,null,null,null,null,null,null,null,null,null,null,null,null,null,{"$f":"BD11","v":4},{"$f":"BC4","v":"j"},"+",{"$f":"BD11*BC10","v":24},"=",{"$f":"BD11*BE10","v":60}]
[null,null,null,null,null,null,null,null,null,null,null,null,null,null,null,null,null,null,null,null,null,null,null,null,null,null,null,null,null,null,null,null,null,null,null,null,null,null,null,null,null,null,null,null,null,null,null,null,null,null,null,null,null,null,"-",{"$f":"ROUND(RAND()*(9-1)+1,0)","v":2}]
[null,null,null,null,null,null,null,null,null,null,null,null,null,null,null,null,null,null,null,null,null,null,null,{"$f":"CHAR(RAND()*(107-97)+97)","v":"j"},"=",{"$f":"ROUND(RAND()*((9-(-9)+(-9))),0)","v":9},null,null,null,null,null,null,null,null,null,null,null,null,null,null,null,null,null,null,null,null,null,null,null,null,null,null,{"$f":"BC4","v":"j"},"-",{"$f":"BD13","v":2},"=",{"$f":"BE4-BD13","v":7}]
[null,null,null,null,null,null,null,null,null,null,null,null,null,null,null,null,null,null,null,null,null,null,null,null,null,null,null,null,null,null,null,null,null,null,null,null,null,null,null,null,null,null,null,null,null,null,null,null,null,null,null,null,null,null,"x",{"$f":"ROUND(RAND()*(9-2)+2,0)","v":7}]
[null,null,null,null,null,null,null,null,null,null,null,null,null,null,{"$f":"BC21","v":"x4"},null,null,null,null,null,null,null,null,null,null,null,null,null,null,null,null,null,null,null,null,null,null,null,null,{"$f":"BC23","v":"x7"},null,null,null,null,null,null,null,null,null,null,null,{"$f":"BD15","v":7},{"$f":"BC4","v":"j"},"-",{"$f":"BD15*BC14","v":14},"=",{"$f":"BE14*BD15","v":49}]
[]
[null,null,null,null,null,null,null,null,null,null,null,null,null,null,null,null,null,null,null,null,null,null,null,null,null,null,null,null,null,null,null,null,null,null,null,null,null,null,null,null,null,null,null,null,null,null,null,null,null,null,null,null,null,null,{"$f":"CONCATENATE(BC5,BD5)","v":"x6"}]
[null,null,null,null,null,null,null,null,null,null,null,null,null,null,null,null,null,null,null,null,null,null,null,null,null,null,null,null,null,null,null,null,null,null,null,null,null,null,null,null,null,null,null,null,null,null,null,null,null,null,null,null,null,null,{"$f":"CONCATENATE(BC7,BD7)","v":"+2"}]
[null,null,null,null,null,null,null,null,null,null,null,null,null,null,null,null,null,null,null,null,null,null,null,null,null,null,null,null,null,null,null,null,null,null,null,null,null,null,null,null,null,null,null,null,null,null,null,null,null,null,null,null,null,null,{"$f":"CONCATENATE(BC9,BD9)","v":"+6"}]
[null,null,null,null,null,null,null,null,null,null,null,null,null,null,null,null,null,null,null,null,null,null,null,null,null,null,null,null,null,null,null,null,null,null,null,null,null,null,null,null,null,null,null,null,null,null,null,null,null,null,null,null,null,null,{"$f":"CONCATENATE(BC11,BD11)","v":"x4"}]
[null,null,null,null,null,null,null,null,null,null,null,null,null,null,null,null,null,null,null,null,null,null,null,null,null,null,null,null,null,null,null,null,null,null,null,null,null,null,null,null,null,null,null,null,null,null,null,null,null,null,null,null,null,null,{"$f":"CONCATENATE(BC13,BD13)","v":"-2"}]
[null,null,null,null,null,null,null,null,null,null,null,null,null,null,null,null,null,null,null,null,null,null,null,null,null,null,null,null,null,null,null,null,null,null,null,null,null,null,null,null,null,null,null,null,null,null,null,null,null,null,null,null,null,null,{"$f":"CONCATENATE(BC15,BD15)","v":"x7"}]

{"sheet":"Harder_Backward_Equation","index":2,"n_rows":22,"n_cols":53,"rows_kept":22,"cut":false,"hidden":false,"merged":[[14,39,15,40],[14,14,15,15],[3,22,4,23],[14,10,15,11],[14,35,15,36],[3,26,4,27],[3,24,4,25],[14,37,15,38],[14,12,15,13]]}
[]
[null,null,null,null,null,null,null,null,null,null,null,null,null,null,null,null,null,{"$f":"AV7","v":3},{"$f":"AW7","v":"t"},"+",8,"=",{"$f":"BA7","v":32}]
[null,null,null,null,null,null,null,null,null,null,null,null,null,null,null,null,null,null,null,null,null,null,null,null,null,null,null,null,null,null,null,null,null,null,null,null,null,null,null,null,null,null,null,null,null,null,null,null,null,null,{"$f":"T13","v":"t"},{"$f":"U13","v":"="},{"$f":"V13","v":8}]
[null,null,null,null,null,null,null,null,null,null,null,null,null,null,null,null,null,null,null,null,null,null,null,null,"then",null,null,null,null,null,null,null,null,null,null,null,null,null,null,null,null,null,null,null,null,null,null,null,null,null,"x",{"$f":"ROUND(RAND()*(5-2)+2,0)","v":3}]
[null,null,null,null,null,null,null,null,null,null,null,null,null,null,null,null,null,null,null,null,null,null,null,null,null,null,null,null,null,null,null,null,null,null,null,null,null,null,null,null,null,null,null,null,null,null,null,null,null,{"$f":"AZ4","v":3},{"$f":"AY3","v":"t"},"=",{"$f":"AZ4*BA3","v":24}]
[null,null,null,null,null,null,null,null,null,null,null,null,null,null,null,null,null,null,null,null,null,null,null,null,null,null,null,null,null,null,null,null,null,null,null,null,null,null,null,null,null,null,null,null,null,null,null,null,null,null,"+",{"$f":"ROUND(RAND()*((9-1)+1),0)","v":8}]
[null,null,null,null,null,null,null,null,null,null,null,null,null,null,null,null,null,null,null,{"$f":"AX5","v":3},{"$f":"AY5","v":"t"},{"$f":"AZ5","v":"="},24,null,null,null,null,null,null,null,null,null,null,null,null,null,null,null,null,null,null,null,null,null,null,null,null,{"$f":"AX5","v":3},{"$f":"AY5","v":"t"},"+",{"$f":"AZ6","v":8},"=",{"$f":"BA5+AZ6","v":32}]
[null,null,null,null,null,null,null,null,null,null,null,null,null,null,null,null,null,null,null,null,null,null,null,null,null,null,null,null,null,null,null,null,null,null,null,null,null,null,null,null,null,null,null,null,null,null,null,null,null,null,"+",{"$f":"ROUND(RAND()*((9-1)+1),0)","v":0}]
[null,null,null,null,null,null,null,null,null,null,null,null,null,null,null,null,null,null,null,null,null,null,null,null,null,null,null,null,null,null,null,null,null,null,null,null,null,null,null,null,null,null,null,null,null,null,null,null,{"$f":"AY3","v":"t"},"+",{"$f":"AZ8","v":0},"=",{"$f":"BA3+AZ8","v":8}]
[null,null,null,null,null,null,null,null,null,null,null,null,null,null,null,null,null,null,null,null,null,null,null,null,null,null,null,null,null,null,null,null,null,null,null,null,null,null,null,null,null,null,null,null,null,null,null,null,null,null,"x",{"$f":"ROUND(RAND()*(6-2)+2,0)","v":6}]
[null,null,null,null,null,null,null,null,null,null,null,null,null,null,null,null,null,null,null,null,null,null,null,null,null,null,null,null,null,null,null,null,null,null,null,null,null,null,null,null,null,null,null,null,null,null,null,{"$f":"AZ10","v":6},{"$f":"AY3","v":"t"},"+",{"$f":"AZ10*AY9","v":0},"=",{"$f":"AZ10*BA9","v":48}]
[null,null,null,null,null,null,null,null,null,null,null,null,null,null,null,null,null,null,null,null,null,null,null,null,null,null,null,null,null,null,null,null,null,null,null,null,null,null,null,null,null,null,null,null,null,null,null,null,null,null,"-",{"$f":"ROUND(RAND()*((9-1)+1),0)","v":5}]
[null,null,null,null,null,null,null,{"$f":"AW9","v":"t"},"+",0,"=",{"$f":"BA9","v":8},null,null,null,null,null,null,null,{"$f":"CHAR(RAND()*(122-115)+115)","v":"t"},"=",{"$f":"ROUND(RAND()*((9-(-9)+(-9))),0)","v":8},null,null,null,null,null,null,null,null,{"$f":"AW13","v":"t"},{"$f":"AX13","v":"-"},5,"=",3,null,null,null,null,null,null,null,null,null,null,null,null,null,{"$f":"AY3","v":"t"},"-",{"$f":"AZ12","v":5},"=",{"$f":"BA3-AZ12","v":3}]
[null,null,null,null,null,null,null,null,null,null,null,null,null,null,null,null,null,null,null,null,null,null,null,null,null,null,null,null,null,null,null,null,null,null,null,null,null,null,null,null,null,null,null,null,null,null,null,null,null,null,"x",{"$f":"ROUND(RAND()*(6-2)+2,0)","v":5}]
[null,null,null,null,null,null,null,null,null,null,null,null,"then",null,null,null,null,null,null,null,null,null,null,null,null,null,null,null,null,null,null,null,null,null,null,null,null,"then",null,null,null,null,null,null,null,null,null,{"$f":"AZ14","v":5},{"$f":"AY3","v":"t"},"-",{"$f":"AZ14*AY13","v":25},"=",{"$f":"BA13*AZ14","v":15}]
[]
[null,null,null,null,null,null,null,null,null,null,null,null,null,null,null,null,null,null,null,null,null,null,null,null,null,null,null,null,null,null,null,null,null,null,null,null,null,null,null,null,null,null,null,null,null,null,null,null,null,null,{"$f":"CONCATENATE(AY4,AZ4)","v":"x3"}]
[null,null,null,null,null,null,{"$f":"AV11","v":6},"t","+",0,"=",{"$f":"BA11","v":48},null,null,null,null,null,null,null,null,null,null,null,null,null,null,null,null,null,{"$f":"AV15","v":5},"t","-",25,"=",{"$f":"BA15","v":15},null,null,null,null,null,null,null,null,null,null,null,null,null,null,null,{"$f":"CONCATENATE(AY6,AZ6)","v":"+8"}]
[null,null,null,null,null,null,null,null,null,null,null,null,null,null,null,null,null,null,null,null,null,null,null,null,null,null,null,null,null,null,null,null,null,null,null,null,null,null,null,null,null,null,null,null,null,null,null,null,null,null,{"$f":"CONCATENATE(AY8,AZ8)","v":"+0"}]
[null,null,null,null,null,null,null,null,null,null,null,null,null,null,null,null,null,null,null,null,null,null,null,null,null,null,null,null,null,null,null,null,null,null,null,null,null,null,null,null,null,null,null,null,null,null,null,null,null,null,{"$f":"CONCATENATE(AY10,AZ10)","v":"x6"}]
[null,null,null,null,null,null,null,null,null,null,null,null,null,null,null,null,null,null,null,null,null,null,null,null,null,null,null,null,null,null,null,null,null,null,null,null,null,null,null,null,null,null,null,null,null,null,null,null,null,null,{"$f":"CONCATENATE(AY12,AZ12)","v":"-5"}]
[null,null,null,null,null,null,null,null,null,null,null,null,null,null,null,null,null,null,null,null,null,null,null,null,null,null,null,null,null,null,null,null,null,null,null,null,null,null,null,null,null,null,null,null,null,null,null,null,null,null,{"$f":"CONCATENATE(AY14,AZ14)","v":"x5"}]